fUST/lending_fUST_20250422
["ID","MTS","AMOUNT","RATE_DAILY","PERIOD"]
[358624735,1745317840114,-526.27,0.00021917,2]
[358624736,1745317840124,-500.0,0.00021917,2]
[358624737,1745317840135,-500.0,0.00021917,2]
[358624738,1745317840145,-500.0,0.00021917,2]
[358624739,1745317840156,-500.0,0.00021917,2]
[358624740,1745317840167,-507.14471791,0.00021917,2]
[358624741,1745317840177,-9200.03,0.00021917,2]
[358624742,1745317840187,-287.67397708,0.00021917,2]
[358624743,1745317840198,-500.0,0.00021917,2]
[358624744,1745317840208,-500.0,0.00021917,2]
[358624746,1745317840218,-500.0,0.00021917,2]
[358624748,1745317840228,-500.0,0.00021917,2]
[358624749,1745317840238,-505.33011739,0.00021917,2]
[358624750,1745317840248,-500.0,0.00021917,2]
[358624751,1745317840257,-500.0,0.00021917,2]
[358624752,1745317840266,-500.0,0.00021917,2]
[358624753,1745317840275,-500.0,0.00021917,2]
[358624754,1745317840285,-526.87,0.00021917,2]
[358624755,1745317840294,-500.0,0.00021917,2]
[358624756,1745317840303,-500.0,0.00021917,2]
[358624757,1745317840313,-500.0,0.00021917,2]
[358624758,1745317840322,-500.0,0.00021917,2]
[358624759,1745317840331,-500.0,0.00021917,2]
[358624760,1745317840341,-500.0,0.00021917,2]
[358624761,1745317840350,-663.56,0.00021917,2]
[358624762,1745317840359,-500.0,0.00021917,2]
[358624763,1745317840369,-500.0,0.00021917,2]
[358624765,1745317840378,-500.0,0.00021917,2]
[358624766,1745317840389,-500.0,0.00021917,2]
[358624768,1745317840398,-500.0,0.00021917,2]
[358624770,1745317840408,-500.0,0.00021917,2]
[358624772,1745317840418,-500.0,0.00021917,2]
[358624774,1745317840428,-500.0,0.00021917,2]
[358624776,1745317840438,-500.0,0.00021917,2]
[358624777,1745317840447,-500.0,0.00021917,2]
[358624778,1745317840457,-500.0,0.00021917,2]
[358624779,1745317840467,-500.0,0.00021917,2]
[358624780,1745317840477,-500.0,0.00021917,2]
[358624781,1745317840486,-500.0,0.00021917,2]
[358624782,1745317840496,-500.0,0.00021917,2]
[358624784,1745317840505,-500.0,0.00021917,2]
[358624785,1745317840516,-500.0,0.00021917,2]
[358624786,1745317840526,-500.0,0.00021917,2]
[358624787,1745317840536,-504.2932051,0.00021917,2]
[358624788,1745317840546,-5197.76,0.00021917,2]
[358624790,1745317840556,-500.0,0.00021917,2]
[358624792,1745317840566,-500.0,0.00021917,2]
[358624794,1745317840576,-500.0,0.00021917,2]
[358624796,1745317840586,-500.0,0.00021917,2]
[358624798,1745317840595,-500.0,0.00021917,2]
[358624799,1745317840604,-500.0,0.00021917,2]
[358624801,1745317840614,-500.0,0.00021917,2]
[358624803,1745317840635,-500.0,0.00021917,2]
[358624805,1745317840647,-500.0,0.00021917,2]
[358624807,1745317840658,-500.0,0.00021917,2]
[358624808,1745317840668,-277.99723843,0.00021917,2]
[358624809,1745317840679,-720.13,0.00021917,2]
[358624810,1745317840690,-500.0,0.00021917,2]
[358624811,1745317840700,-500.0,0.00021917,2]
[358624812,1745317840711,-500.0,0.00021917,2]
[358624813,1745317840722,-500.0,0.00021917,2]
[358624814,1745317840732,-500.0,0.00021917,2]
[358624815,1745317840743,-500.0,0.00021917,2]
[358624816,1745317840754,-3093.24,0.00021917,2]
[358624818,1745317840764,-1538.06,0.00021917,2]
[358624819,1745317840775,-548.67,0.00021917,2]
[358624821,1745317840784,-500.0,0.00021917,2]
[358624823,1745317840796,-500.0,0.00021917,2]
[358624825,1745317840809,-500.0,0.00021917,2]
[358624827,1745317840819,-500.0,0.00021917,2]
[358624829,1745317840828,-500.0,0.00021917,2]
[358624830,1745317840839,-727.21,0.00021917,2]
[358624832,1745317840849,-500.0,0.00021917,2]
[358624834,1745317840859,-520.10718635,0.00021917,2]
[358624835,1745317840870,-500.0,0.00021917,2]
[358624836,1745317840881,-500.0,0.00021917,2]
[358624837,1745317840892,-500.0,0.00021917,2]
[358624838,1745317840902,-500.0,0.00021917,2]
[358624839,1745317840912,-500.0,0.00021917,2]
[358624840,1745317840922,-500.0,0.00021917,2]
[358624841,1745317840932,-500.0,0.00021917,2]
[358624842,1745317840942,-500.0,0.00021917,2]
[358624843,1745317840952,-500.0,0.00021917,2]
[358624845,1745317840962,-500.0,0.00021917,2]
[358624846,1745317840972,-500.0,0.00021917,2]
[358624848,1745317840982,-500.0,0.00021917,2]
[358624850,1745317840992,-613.81,0.00021917,2]
[358624851,1745317841003,-500.0,0.00021917,2]
[358624852,1745317841013,-500.0,0.00021917,2]
[358624853,1745317841023,-532.79272639,0.00021917,2]
[358624854,1745317841032,-500.0,0.00021917,2]
[358624855,1745317841042,-500.0,0.00021917,2]
[358624856,1745317841052,-504.3851446,0.00021917,2]
[358624857,1745317841062,-500.0,0.00021917,2]
[358624858,1745317841072,-506.26261494,0.00021917,2]
[358624859,1745317841082,-500.0,0.00021917,2]
[358624860,1745317841092,-500.0,0.00021917,2]
[358624861,1745317841102,-500.0,0.00021917,2]
[358624862,1745317841112,-1350.28,0.00021917,2]
[358624863,1745317841122,-500.0,0.00021917,2]
[358624864,1745317841132,-500.0,0.00021917,2]
[358624865,1745317841143,-501.0,0.00021917,2]
[358624866,1745317841152,-500.0,0.00021917,2]
[358624867,1745317841162,-500.0,0.00021917,2]
[358624868,1745317841173,-500.0,0.00021917,2]
[358624869,1745317841183,-500.0,0.00021917,2]
[358624870,1745317841193,-673.04,0.00021917,2]
[358624871,1745317841204,-536.15,0.00021917,2]
[358624872,1745317841214,-500.0,0.00021917,2]
[358624873,1745317841224,-500.0,0.00021917,2]
[358624874,1745317841234,-654.9,0.00021917,2]
[358624875,1745317841248,-500.0,0.00021917,2]
[358624876,1745317841259,-500.0,0.00021917,2]
[358624877,1745317841269,-500.0,0.00021917,2]
[358624878,1745317841279,-500.0,0.00021917,2]
[358624879,1745317841289,-500.0,0.00021917,2]
[358624880,1745317841300,-568.27800806,0.00021917,2]
[358624881,1745317841310,-500.0,0.00021917,2]
[358624882,1745317841320,-500.0,0.00021917,2]
[358624883,1745317841330,-511.76396241,0.00021917,2]
[358624884,1745317841341,-500.0,0.00021917,2]
[358624885,1745317841355,-500.0,0.00021917,2]
[358624886,1745317841365,-500.0,0.00021917,2]
[358624887,1745317841375,-500.0,0.00021917,2]
[358624888,1745317841385,-264.05483498,0.00021917,2]
[358624889,1745317841396,-500.0,0.00021917,2]
[358624890,1745317841406,-1671.7,0.00021917,2]
[358624891,1745317841417,-504.4368688,0.00021917,2]
[358624892,1745317841428,-500.0,0.00021917,2]
[358624893,1745317841439,-509.58386895,0.00021917,2]
[358624894,1745317841449,-500.0,0.00021917,2]
[358624895,1745317841459,-496.08129879,0.00021917,2]
[358624896,1745317841471,-697.11,0.00021917,2]
[358624897,1745317841480,-500.0,0.00021917,2]
[358624898,1745317841491,-500.0,0.00021917,2]
[358624899,1745317841501,-501.29181071,0.00021917,2]
[358624900,1745317841511,-504.63,0.00021917,2]
[358624901,1745317841522,-500.0,0.00021917,2]
[358624902,1745317841533,-579.93,0.00021917,2]
[358624903,1745317841544,-823.51,0.00021917,2]
[358624904,1745317841554,-508.61607379,0.00021917,2]
[358624905,1745317841564,-500.0,0.00021917,2]
[358624906,1745317841574,-511.80561492,0.00021917,2]
[358624907,1745317841585,-500.0,0.00021917,2]
[358624908,1745317841596,-466.83377839,0.00021917,2]
[358624909,1745317841606,-151.32188304,0.00021917,2]
[358624910,1745317841616,-500.0,0.00021917,2]
[358624911,1745317841626,-3707.07,0.00021917,2]
[358624912,1745317841637,-501.8891318,0.00021917,2]
[358624913,1745317841647,-500.0,0.00021917,2]
[358624914,1745317841657,-500.0,0.00021917,2]
[358624915,1745317841667,-500.0,0.00021917,2]
[358624916,1745317841677,-500.0,0.00021917,2]
[358624917,1745317841687,-500.0,0.00021917,2]
[358624918,1745317841697,-500.0,0.00021917,2]
[358624919,1745317841707,-500.0,0.00021917,2]
[358624920,1745317841716,-504.83227008,0.00021917,2]
[358624921,1745317841726,-503.91757136,0.00021917,2]
[358624922,1745317841735,-2756.07,0.00021917,2]
[358624923,1745317841745,-500.0,0.00021917,2]
[358624924,1745317841756,-515.60651541,0.00021917,2]
[358624925,1745317841765,-510.29906048,0.00021917,2]
[358624926,1745317841775,-500.0,0.00021917,2]
[358624927,1745317841785,-500.0,0.00021917,2]
[358624928,1745317841795,-500.0,0.00021917,2]
[358624929,1745317841808,-500.0,0.00021917,2]
[358624930,1745317841818,-500.0,0.00021917,2]
[358624931,1745317841828,-500.0,0.00021917,2]
[358624932,1745317841837,-503.87016722,0.00021917,2]
[358624933,1745317841849,-500.0,0.00021917,2]
[358624934,1745317841858,-500.0,0.00021917,2]
[358624935,1745317841868,-500.0,0.00021917,2]
[358624936,1745317841878,-503.3984315,0.00021917,2]
[358624937,1745317841888,-500.0,0.00021917,2]
[358624938,1745317841898,-500.0,0.00021917,2]
[358624939,1745317841908,-174.015634,0.00021918,2]
[358624940,1745317841918,-166.0,0.00021918,2]
[358624941,1745317841928,-282.28074123,0.00021918,2]
[358624942,1745317841938,-500.0,0.00021918,2]
[358624943,1745317841948,-151.0,0.00021918,2]
[358624944,1745317841958,-151.0,0.00021918,2]
[358624945,1745317841969,-151.0,0.00021918,2]
[358624946,1745317841979,-207.4,0.00022115,2]
[358624947,1745317841988,-500.0,0.0002219,2]
[358624948,1745317841999,-500.0,0.0002219,2]
[358624949,1745317842010,-500.0,0.0002219,2]
[358624950,1745317842020,-500.0,0.0002219,2]
[358624951,1745317842030,-500.0,0.0002219,2]
[358624952,1745317842040,-500.0,0.0002219,2]
[358624953,1745317842050,-173.9981589,0.0002219,2]
[358624954,1745317842060,-502.99728231,0.0002219,2]
[358624955,1745317842070,-169.87146534,0.0002219,2]
[358624956,1745317842080,-500.0,0.00022191,2]
[358624957,1745317842090,-500.0,0.00022191,2]
[358624958,1745317842101,-500.0,0.00022191,2]
[358624959,1745317842110,-500.0,0.00022191,2]
[358624960,1745317842120,-500.0,0.00022191,2]
[358624961,1745317842129,-500.0,0.00022191,2]
[358624962,1745317842140,-500.0,0.00022191,2]
[358624963,1745317842150,-500.0,0.00022191,2]
[358624964,1745317842160,-500.0,0.00022191,2]
[358624965,1745317842170,-500.0,0.00022191,2]
[358624966,1745317842181,-500.0,0.00022191,2]
[358624967,1745317842191,-500.0,0.00022191,2]
[358624968,1745317842201,-500.0,0.00022191,2]
[358624969,1745317842211,-500.0,0.00022191,2]
[358624970,1745317842222,-500.0,0.00022191,2]
[358624971,1745317842232,-412.18666766,0.00022191,2]
[358624972,1745317842243,-546.27,0.00022191,2]
[358624973,1745317842254,-500.0,0.00022191,2]
[358624974,1745317842264,-500.0,0.00022191,2]
[358624975,1745317842274,-500.0,0.00022191,2]
[358624976,1745317842284,-500.0,0.00022191,2]
[358624977,1745317842294,-500.0,0.00022191,2]
[358624978,1745317842304,-529.16,0.00022191,2]
[358624979,1745317842313,-500.0,0.00022191,2]
[358624980,1745317842323,-673.99,0.00022191,2]
[358624981,1745317842335,-500.0,0.00022191,2]
[358624982,1745317842346,-500.0,0.00022191,2]
[358624983,1745317842356,-925.88,0.00022191,2]
[358624984,1745317842366,-500.0,0.00022191,2]
[358624985,1745317842376,-550.01,0.00022191,2]
[358624986,1745317842386,-500.0,0.00022191,2]
[358624987,1745317842395,-500.0,0.00022191,2]
[358624988,1745317842405,-500.0,0.00022191,2]
[358624989,1745317842415,-1139.2,0.00022191,2]
[358624990,1745317842425,-500.0,0.00022191,2]
[358624991,1745317842435,-500.0,0.00022191,2]
[358624992,1745317842445,-500.0,0.00022191,2]
[358624993,1745317842454,-502.67,0.00022191,2]
[358624994,1745317842464,-500.0,0.00022191,2]
[358624995,1745317842475,-500.0,0.00022191,2]
[358624996,1745317842486,-500.0,0.00022191,2]
[358624997,1745317842496,-500.0,0.00022191,2]
[358624998,1745317842506,-500.0,0.00022191,2]
[358624999,1745317842516,-500.0,0.00022191,2]
[358625000,1745317842528,-500.0,0.00022191,2]
[358625001,1745317842538,-770.02,0.00022191,2]
[358625002,1745317842548,-500.0,0.00022191,2]
[358625003,1745317842558,-500.0,0.00022191,2]
[358625004,1745317842569,-591.02,0.00022191,2]
[358625005,1745317842580,-500.0,0.00022191,2]
[358625006,1745317842591,-531.60881479,0.00022191,2]
[358625007,1745317842601,-500.0,0.00022191,2]
[358625008,1745317842612,-500.0,0.00022191,2]
[358625009,1745317842622,-512.35601815,0.00022191,2]
[358625010,1745317842791,-503.65206564,0.00022191,2]
[358625011,1745317842805,-526.27,0.00022191,2]
[358625012,1745317842816,-500.0,0.00022191,2]
[358625013,1745317842826,-500.0,0.00022191,2]
[358625014,1745317842836,-500.0,0.00022191,2]
[358625015,1745317842847,-9200.03,0.00022191,2]
[358625016,1745317842861,-500.0,0.00022191,2]
[358625017,1745317842882,-500.0,0.00022191,2]
[358625018,1745317842893,-500.0,0.00022191,2]
[358625019,1745317842903,-500.0,0.00022191,2]
[358625020,1745317842914,-526.87,0.00022191,2]
[358625021,1745317842924,-500.0,0.00022191,2]
[358625022,1745317842935,-500.0,0.00022191,2]
[358625023,1745317842944,-663.56,0.00022191,2]
[358625024,1745317842954,-500.0,0.00022191,2]
[358625025,1745317842964,-629.71255057,0.00022191,2]
[358625027,1745317842974,-502.68089018,0.00022191,2]
[358625028,1745317842984,-508.22097457,0.00022191,2]
[358625029,1745317842994,-500.0,0.00022191,2]
[358625030,1745317843005,-169.60740165,0.00022191,2]
[358625031,1745317843016,-500.0,0.00022191,2]
[358625032,1745317843027,-500.0,0.00022191,2]
[358625033,1745317843038,-500.0,0.00022191,2]
[358625034,1745317843047,-500.0,0.00022191,2]
[358625035,1745317843057,-500.0,0.00022191,2]
[358625037,1745317843067,-500.0,0.00022191,2]
[358625039,1745317843077,-5197.76,0.00022191,2]
[358625041,1745317843087,-500.0,0.00022191,2]
[358625043,1745317843097,-500.0,0.00022191,2]
[358625044,1745317843106,-500.0,0.00022191,2]
[358625046,1745317843116,-500.0,0.00022191,2]
[358625047,1745317843126,-509.38929486,0.00022191,2]
[358625048,1745317843137,-500.0,0.00022191,2]
[358625050,1745317843147,-500.0,0.00022191,2]
[358625051,1745317843157,-500.0,0.00022191,2]
[358625053,1745317843167,-500.0,0.00022191,2]
[358625054,1745317843178,-720.13,0.00022191,2]
[358625056,1745317843188,-500.0,0.00022191,2]
[358625058,1745317843198,-500.0,0.00022191,2]
[358625059,1745317843208,-500.0,0.00022191,2]
[358625060,1745317843218,-500.0,0.00022191,2]
[358625061,1745317843228,-500.0,0.00022191,2]
[358625062,1745317843238,-500.0,0.00022191,2]
[358625063,1745317843248,-3093.24,0.00022191,2]
[358625064,1745317843259,-1538.06,0.00022191,2]
[358625065,1745317843270,-548.67,0.00022191,2]
[358625066,1745317843279,-399.85441223,0.00022191,2]
[358625068,1745317843290,-500.0,0.00022191,2]
[358625070,1745317843301,-500.0,0.00022191,2]
[358625072,1745317843316,-727.21,0.00022191,2]
[358625073,1745317843331,-500.0,0.00022191,2]
[358625075,1745317843342,-500.0,0.00022191,2]
[358625077,1745317843352,-500.0,0.00022191,2]
[358625078,1745317843362,-500.0,0.00022191,2]
[358625079,1745317843371,-500.0,0.00022191,2]
[358625080,1745317843382,-500.0,0.00022191,2]
[358625081,1745317843393,-457.02890223,0.00022191,2]
[358625083,1745317843404,-613.81,0.00022191,2]
[358625085,1745317843414,-500.0,0.00022191,2]
[358625087,1745317843424,-500.0,0.00022191,2]
[358625088,1745317843433,-500.0,0.00022191,2]
[358625089,1745317843444,-500.0,0.00022191,2]
[358625090,1745317843454,-500.0,0.00022191,2]
[358625091,1745317843463,-500.0,0.00022191,2]
[358625092,1745317843473,-509.84449629,0.00022191,2]
[358625093,1745317843482,-1350.28,0.00022191,2]
[358625094,1745317843492,-500.0,0.00022191,2]
[358625095,1745317843501,-500.0,0.00022191,2]
[358625096,1745317843511,-501.0,0.00022191,2]
[358625097,1745317843520,-500.0,0.00022191,2]
[358625098,1745317843530,-500.0,0.00022191,2]
[358625099,1745317843540,-500.0,0.00022191,2]
[358625100,1745317843551,-500.0,0.00022191,2]
[358625101,1745317843561,-673.04,0.00022191,2]
[358625102,1745317843571,-536.15,0.00022191,2]
[358625103,1745317843580,-500.0,0.00022191,2]
[358625104,1745317843590,-500.0,0.00022191,2]
[358625105,1745317843600,-654.9,0.00022191,2]
[358625106,1745317843610,-500.0,0.00022191,2]
[358625107,1745317843620,-504.19897162,0.00022191,2]
[358625108,1745317843630,-500.0,0.00022191,2]
[358625109,1745317843640,-500.0,0.00022191,2]
[358625110,1745317843650,-503.71419568,0.00022191,2]
[358625111,1745317843659,-500.0,0.00022191,2]
[358625112,1745317843670,-500.0,0.00022191,2]
[358625113,1745317843680,-500.0,0.00022191,2]
[358625114,1745317843690,-500.0,0.00022191,2]
[358625115,1745317843700,-509.31683203,0.00022191,2]
[358625117,1745317843709,-500.0,0.00022191,2]
[358625119,1745317843718,-1671.7,0.00022191,2]
[358625120,1745317843728,-504.59641593,0.00022191,2]
[358625121,1745317843738,-500.0,0.00022191,2]
[358625122,1745317843747,-697.11,0.00022191,2]
[358625123,1745317843757,-506.67902245,0.00022191,2]
[358625124,1745317843767,-510.87734503,0.00022191,2]
[358625125,1745317843777,-504.63,0.00022191,2]
[358625126,1745317843787,-500.0,0.00022191,2]
[358625127,1745317843798,-579.93,0.00022191,2]
[358625128,1745317843813,-823.51,0.00022191,2]
[358625129,1745317843822,-626.44,0.00022191,2]
[358625130,1745317843832,-500.0,0.00022191,2]
[358625131,1745317843843,-3707.07,0.00022191,2]
[358625132,1745317843853,-500.0,0.00022191,2]
[358625133,1745317843862,-500.0,0.00022191,2]
[358625134,1745317843872,-500.0,0.00022191,2]
[358625135,1745317843883,-503.04762056,0.00022191,2]
[358625136,1745317843894,-2756.07,0.00022191,2]
[358625137,1745317843904,-500.0,0.00022191,2]
[358625138,1745317843914,-500.0,0.00022191,2]
[358625139,1745317843924,-528.54,0.00022191,2]
[358625140,1745317843934,-500.0,0.00022191,2]
[358625141,1745317843944,-500.0,0.00022191,2]
[358625142,1745317843954,-500.0,0.00022191,2]
[358625143,1745317843964,-500.0,0.00022191,2]
[358625144,1745317843973,-500.0,0.00022191,2]
[358625145,1745317843984,-500.0,0.00022191,2]
[358625146,1745317843994,-500.0,0.00022191,2]
[358625147,1745317844004,-500.0,0.00022191,2]
[358625148,1745317844014,-260.82011822,0.00022191,2]
[358625149,1745317844024,-500.0,0.00022464,2]
[358625150,1745317844034,-468.13857408,0.00022464,2]
[358625151,1745317844044,-500.0,0.00022464,2]
[358625152,1745317844053,-500.0,0.00022464,2]
[358625153,1745317844064,-500.0,0.00022464,2]
[358625154,1745317844074,-500.0,0.00022465,2]
[358625155,1745317844086,-500.0,0.00022465,2]
[358625156,1745317844096,-500.0,0.00022465,2]
[358625157,1745317844106,-500.0,0.00022465,2]
[358625158,1745317844116,-500.0,0.00022465,2]
[358625159,1745317844126,-500.0,0.00022465,2]
[358625160,1745317844136,-500.0,0.00022465,2]
[358625161,1745317844146,-500.0,0.00022465,2]
[358625162,1745317844155,-546.27,0.00022465,2]
[358625163,1745317844165,-384.74807884,0.00022465,2]
[358625164,1745317844175,-250.76256069,0.00022465,2]
[358625165,1745317844184,-500.0,0.00022465,2]
[358625166,1745317844194,-500.0,0.00022465,2]
[358625167,1745317844204,-500.0,0.00022465,2]
[358625168,1745317844213,-529.16,0.00022465,2]
[358625169,1745317844223,-500.0,0.00022465,2]
[358625170,1745317844233,-673.99,0.00022465,2]
[358625172,1745317844242,-500.0,0.00022465,2]
[358625174,1745317844251,-500.0,0.00022465,2]
[358625176,1745317844261,-925.88,0.00022465,2]
[358625177,1745317844271,-500.0,0.00022465,2]
[358625179,1745317844281,-550.01,0.00022465,2]
[358625180,1745317844290,-500.0,0.00022465,2]
[358625182,1745317844299,-500.0,0.00022465,2]
[358625184,1745317844309,-500.0,0.00022465,2]
[358625186,1745317844319,-1139.2,0.00022465,2]
[358625187,1745317844328,-500.0,0.00022465,2]
[358625188,1745317844338,-500.0,0.00022465,2]
[358625189,1745317844348,-621.02727777,0.00022465,2]
[358625190,1745317844358,-502.67,0.00022465,2]
[358625191,1745317844368,-500.0,0.00022465,2]
[358625192,1745317844378,-500.0,0.00022465,2]
[358625193,1745317844390,-500.0,0.00022465,2]
[358625194,1745317844400,-500.0,0.00022465,2]
[358625195,1745317844410,-500.0,0.00022465,2]
[358625196,1745317844419,-500.0,0.00022465,2]
[358625197,1745317844429,-500.0,0.00022465,2]
[358625198,1745317844438,-770.02,0.00022465,2]
[358625199,1745317844447,-500.0,0.00022465,2]
[358625200,1745317844457,-500.0,0.00022465,2]
[358625201,1745317844467,-591.02,0.00022465,2]
[358625202,1745317844476,-500.0,0.00022465,2]
[358625203,1745317844486,-500.0,0.00022465,2]
[358625204,1745317844496,-500.0,0.00022465,2]
[358625205,1745317844508,-526.27,0.00022465,2]
[358625206,1745317844518,-500.0,0.00022465,2]
[358625207,1745317844528,-500.0,0.00022465,2]
[358625208,1745317844537,-500.0,0.00022465,2]
[358625209,1745317844547,-9200.03,0.00022465,2]
[358625210,1745317844558,-500.0,0.00022465,2]
[358625211,1745317844568,-500.0,0.00022465,2]
[358625212,1745317844577,-500.0,0.00022465,2]
[358625213,1745317844588,-526.87,0.00022465,2]
[358625214,1745317844598,-500.0,0.00022465,2]
[358625215,1745317844608,-500.0,0.00022465,2]
[358625216,1745317844618,-663.56,0.00022465,2]
[358625217,1745317844627,-500.0,0.00022465,2]
[358625218,1745317844637,-500.0,0.00022465,2]
[358625219,1745317844647,-500.0,0.00022465,2]
[358625220,1745317844657,-500.0,0.00022465,2]
[358625221,1745317844666,-456.08664367,0.00022465,2]
[358625222,1745317844677,-5197.76,0.00022465,2]
[358625223,1745317844688,-500.0,0.00022465,2]
[358625224,1745317844698,-500.0,0.00022465,2]
[358625225,1745317844708,-500.0,0.00022465,2]
[358625226,1745317844718,-720.13,0.00022465,2]
[358625227,1745317844728,-500.0,0.00022465,2]
[358625228,1745317844737,-500.0,0.00022465,2]
[358625229,1745317844747,-500.0,0.00022465,2]
[358625230,1745317844757,-3093.24,0.00022465,2]
[358625231,1745317844768,-1538.06,0.00022465,2]
[358625232,1745317844778,-548.67,0.00022465,2]
[358625233,1745317844788,-500.0,0.00022465,2]
[358625234,1745317844798,-727.21,0.00022465,2]
[358625235,1745317844811,-500.0,0.00022465,2]
[358625236,1745317844821,-500.0,0.00022465,2]
[358625237,1745317844831,-613.81,0.00022465,2]
[358625238,1745317844841,-1350.28,0.00022465,2]
[358625239,1745317844851,-530.00080485,0.00022465,2]
[358625240,1745317844862,-501.0,0.00022465,2]
[358625241,1745317844872,-500.0,0.00022465,2]
[358625242,1745317844883,-673.04,0.00022465,2]
[358625243,1745317844895,-536.15,0.00022465,2]
[358625244,1745317844904,-500.0,0.00022465,2]
[358625245,1745317844913,-654.9,0.00022465,2]
[358625246,1745317844924,-500.0,0.00022465,2]
[358625247,1745317844933,-500.0,0.00022465,2]
[358625248,1745317844944,-500.0,0.00022465,2]
[358625249,1745317844954,-1671.7,0.00022465,2]
[358625250,1745317844964,-697.11,0.00022465,2]
[358625251,1745317844975,-504.63,0.00022465,2]
[358625252,1745317844999,-579.93,0.00022465,2]
[358625253,1745317845010,-823.51,0.00022465,2]
[358625254,1745317845020,-3707.07,0.00022465,2]
[358625255,1745317845030,-508.20152519,0.00022465,2]
[358625256,1745317845040,-500.0,0.00022465,2]
[358625257,1745317845050,-2756.07,0.00022465,2]
[358625258,1745317845060,-500.0,0.00022465,2]
[358625259,1745317845070,-508.50755729,0.00022465,2]
[358625260,1745317845080,-500.0,0.00022465,2]
[358625261,1745317845091,-500.0,0.00022465,2]
[358625262,1745317845100,-500.0,0.00022466,2]
[358625263,1745317845111,-151.0,0.00022466,2]
[358625264,1745317845122,-151.0,0.00022466,2]
[358625265,1745317845132,-500.0,0.00022548,2]
[358625266,1745317845142,-300.0,0.00022548,2]
[358625267,1745317845151,-500.0,0.00022548,2]
[358625268,1745317845162,-323.63861545,0.00022554,2]
[358625269,1745317845172,-500.0,0.00022554,2]
[358625270,1745317845182,-500.0,0.00022554,2]
[358625271,1745317845192,-500.0,0.00022554,2]
[358625272,1745317845202,-500.0,0.00022554,2]
[358625273,1745317845212,-500.0,0.00022554,2]
[358625274,1745317845222,-500.0,0.00022554,2]
[358625275,1745317845232,-500.0,0.00022554,2]
[358625276,1745317845241,-500.0,0.00022575,2]
[358625277,1745317845251,-500.0,0.00022575,2]
[358625278,1745317845261,-500.0,0.00022575,2]
[358625279,1745317845271,-160.0,0.00022581,2]
[358625280,1745317845280,-12570.97479393,0.00022581,2]
[358625281,1745317845290,-160.0,0.00022582,2]
[358625282,1745317845302,-160.0,0.00022582,2]
[358625283,1745317845313,-729.16666667,0.00022582,2]
[358625284,1745317845324,-420.73667954,0.00022582,2]
[358625285,1745317845334,-500.0,0.00022602,2]
[358625286,1745317845344,-500.0,0.00022643,2]
[358625287,1745317845354,-500.0,0.00022662,2]
[358625288,1745317845364,-500.0,0.00022705,2]
[358625289,1745317845374,-500.0,0.00022705,2]
[358625290,1745317845384,-500.0,0.00022705,2]